[Event "Titled Tuesday Blitz February 28 Late 2023"]
[White "Florescu, Codrut-Constantin"]
[Black "Fernandez Garcia, Gumersindo"]
[WhiteFideId "1202200"]
[BlackFideId "24516740"]
[WhiteElo "2191"]
[BlackElo "2093"]
[Result "1-0"]
[Round "04"]
[TimeControl "180+2"]
[Date "2023.02.28"]
[WhiteClock "0:00:19"]
[BlackClock "0:00:13"]

1. e4 {[%clk 0:03:00]}  c5 {[%clk 0:02:56]} 2. Nf3 {[%clk 0:03:00]}  e6 {[%clk 0:02:55]} 3. d4 {[%clk 0:03:00]}  cxd4 {[%clk 0:02:56]} 4. Nxd4 {[%clk 0:03:00]}  Nf6 {[%clk 0:02:56]} 5. Nc3 {[%clk 0:03:00]}  Nc6 {[%clk 0:02:57]} 6. Ndb5 {[%clk 0:03:00]}  Bb4 {[%clk 0:02:55]} 7. a3 {[%clk 0:02:59]}  Bxc3+ {[%clk 0:02:56]} 8. Nxc3 {[%clk 0:03:00]}  d5 {[%clk 0:02:56]} 9. exd5 {[%clk 0:03:00]}  exd5 {[%clk 0:02:56]} 10. Bd3 {[%clk 0:03:00]}  O-O {[%clk 0:02:57]} 11. O-O {[%clk 0:03:00]}  Bg4 {[%clk 0:02:58]} 12. Qd2 {[%clk 0:03:00]}  Re8 {[%clk 0:02:55]} 13. Qf4 {[%clk 0:02:59]}  Bh5 {[%clk 0:02:48]} 14. b4 {[%clk 0:02:38]}  Bg6 {[%clk 0:02:39]} 15. Bxg6 {[%clk 0:02:35]}  hxg6 {[%clk 0:02:37]} 16. Bb2 {[%clk 0:02:35]}  d4 {[%clk 0:02:24]} 17. Rad1 {[%clk 0:02:24]}  Qb8 {[%clk 0:01:55]} 18. Qxb8 {[%clk 0:02:21]}  Raxb8 {[%clk 0:01:56]} 19. Nb5 {[%clk 0:02:21]}  Re2 {[%clk 0:01:55]} 20. Nxd4 {[%clk 0:02:18]}  Nxd4 {[%clk 0:01:52]} 21. Bxd4 {[%clk 0:02:18]}  Rxc2 {[%clk 0:01:53]} 22. Rc1 {[%clk 0:01:55]}  Ra2 {[%clk 0:01:35]} 23. Rc3 {[%clk 0:01:54]}  a6 {[%clk 0:01:33]} 24. h3 {[%clk 0:01:42]}  Rd8 {[%clk 0:01:32]} 25. Be3 {[%clk 0:01:35]}  Rd7 {[%clk 0:01:26]} 26. Rfc1 {[%clk 0:01:31]}  Kh7 {[%clk 0:01:10]} 27. Rc7 {[%clk 0:01:26]}  Rxa3 {[%clk 0:01:09]} 28. Rxd7 {[%clk 0:01:24]}  Nxd7 {[%clk 0:01:10]} 29. Rc7 {[%clk 0:01:23]}  Ne5 {[%clk 0:01:06]} 30. Rxb7 {[%clk 0:01:22]}  f6 {[%clk 0:01:05]} 31. Bc5 {[%clk 0:01:19]}  Kg8 {[%clk 0:00:58]} 32. Kh2 {[%clk 0:00:59]}  Ra2 {[%clk 0:00:57]} 33. Kg3 {[%clk 0:00:53]}  g5 {[%clk 0:00:56]} 34. Bd4 {[%clk 0:00:49]}  Nd3 {[%clk 0:00:51]} 35. Kf3 {[%clk 0:00:40]}  Ra4 {[%clk 0:00:50]} 36. Bc5 {[%clk 0:00:34]}  Nxc5 {[%clk 0:00:32]} 37. bxc5 {[%clk 0:00:35]}  Rc4 {[%clk 0:00:33]} 38. Rc7 {[%clk 0:00:34]}  a5 {[%clk 0:00:33]} 39. Ke3 {[%clk 0:00:34]}  Rc2 {[%clk 0:00:26]} 40. g4 {[%clk 0:00:31]}  a4 {[%clk 0:00:24]} 41. Kd4 {[%clk 0:00:21]}  Rxf2 {[%clk 0:00:22]} 42. Ra7 {[%clk 0:00:21]}  g6 {[%clk 0:00:18]} 43. c6 {[%clk 0:00:21]}  Rc2 {[%clk 0:00:16]} 44. c7 {[%clk 0:00:19]}  f5 {[%clk 0:00:13]} 45. Ra8+ {[%clk 0:00:18]}  Kg7 {[%clk 0:00:12]} 46. c8=Q {[%clk 0:00:19]}  Rxc8 {[%clk 0:00:12]} 47. Rxc8 {[%clk 0:00:19]}  f4 {[%clk 0:00:13]} 48. Ke4 {[%clk 0:00:19]} 1-0


[Site "https://www.chess.com"]

[Event "Titled Tuesday Blitz February 28 Late 2023"]
[White "Djokic, Mihailo"]
[Black "Simonovic, Miroslav"]
[WhiteFideId "976440"]
[BlackFideId "919152"]
[WhiteElo "2294"]
[BlackElo "2057"]
[Result "1-0"]
[Round "04"]
[TimeControl "180+2"]
[Date "2023.02.28"]
[WhiteClock "0:00:51"]
[BlackClock "0:00:02"]

1. e4 {[%clk 0:03:00]}  c5 {[%clk 0:03:00]} 2. Nf3 {[%clk 0:03:00]}  Nc6 {[%clk 0:03:00]} 3. d4 {[%clk 0:03:01]}  cxd4 {[%clk 0:03:01]} 4. Nxd4 {[%clk 0:03:02]}  a6 {[%clk 0:03:02]} 5. Nc3 {[%clk 0:03:02]}  g6 {[%clk 0:03:01]} 6. Be3 {[%clk 0:03:02]}  Bg7 {[%clk 0:03:01]} 7. Qd2 {[%clk 0:03:03]}  d6 {[%clk 0:03:01]} 8. O-O-O {[%clk 0:03:03]}  Nf6 {[%clk 0:03:00]} 9. f3 {[%clk 0:03:02]}  O-O {[%clk 0:02:59]} 10. h4 {[%clk 0:03:02]}  Qa5 {[%clk 0:03:00]} 11. Nb3 {[%clk 0:03:01]}  Qc7 {[%clk 0:02:49]} 12. h5 {[%clk 0:03:02]}  Ne5 {[%clk 0:02:48]} 13. hxg6 {[%clk 0:03:01]}  fxg6 {[%clk 0:02:43]} 14. Bh6 {[%clk 0:03:01]}  Be6 {[%clk 0:02:29]} 15. Nd4 {[%clk 0:03:01]}  Bf7 {[%clk 0:02:23]} 16. Bxg7 {[%clk 0:03:01]}  Kxg7 {[%clk 0:02:23]} 17. Qh6+ {[%clk 0:03:01]}  Kg8 {[%clk 0:02:23]} 18. g4 {[%clk 0:03:00]}  Bc4 {[%clk 0:02:03]} 19. Bxc4+ {[%clk 0:02:30]}  Qxc4 {[%clk 0:02:04]} 20. Nf5 {[%clk 0:02:30]}  gxf5 {[%clk 0:01:46]} 21. g5 {[%clk 0:02:31]}  Qf7 {[%clk 0:01:42]} 22. gxf6 {[%clk 0:02:22]}  exf6 {[%clk 0:01:32]} 23. Nd5 {[%clk 0:02:16]}  Nd7 {[%clk 0:00:34]} 24. exf5 {[%clk 0:01:57]}  Kh8 {[%clk 0:00:34]} 25. Nc7 {[%clk 0:01:46]}  Rac8 {[%clk 0:00:26]} 26. Ne6 {[%clk 0:01:46]}  Rg8 {[%clk 0:00:18]} 27. Rxd6 {[%clk 0:01:46]}  Rg2 {[%clk 0:00:07]} 28. Rd2 {[%clk 0:01:39]}  Rxd2 {[%clk 0:00:06]} 29. Kxd2 {[%clk 0:01:40]}  Ne5 {[%clk 0:00:05]} 30. Kc1 {[%clk 0:01:37]}  Nxf3 {[%clk 0:00:05]} 31. Rd1 {[%clk 0:01:31]}  Ng5 {[%clk 0:00:02]} 32. Nxg5 {[%clk 0:01:25]}  fxg5 {[%clk 0:00:03]} 33. Qxg5 {[%clk 0:01:25]}  Rf8 {[%clk 0:00:03]} 34. Rd8 {[%clk 0:01:15]}  Rxd8 {[%clk 0:00:03]} 35. Qxd8+ {[%clk 0:01:15]}  Kg7 {[%clk 0:00:04]} 36. Qg5+ {[%clk 0:01:15]}  Kf8 {[%clk 0:00:03]} 37. f6 {[%clk 0:01:15]}  h5 {[%clk 0:00:02]} 38. b3 {[%clk 0:01:06]}  Ke8 {[%clk 0:00:01]} 39. a4 {[%clk 0:01:05]}  Kd7 {[%clk 0:00:01]} 40. Kb2 {[%clk 0:01:04]}  Ke6 {[%clk 0:00:01]} 41. Ka2 {[%clk 0:00:55]}  Qxf6 {[%clk 0:00:01]} 42. Qxh5 {[%clk 0:00:55]}  Qc3 {[%clk 0:00:02]} 43. Qg6+ {[%clk 0:00:55]}  Kd5 {[%clk 0:00:02]} 44. Qf7+ {[%clk 0:00:53]}  Kd6 {[%clk 0:00:02]} 45. Qf5 {[%clk 0:00:51]}  Kc6 {[%clk 0:00:02]} 46. Qc8+ {[%clk 0:00:50]}  Kb6 {[%clk 0:00:02]} 47. Qxc3 {[%clk 0:00:51]} 1-0


[Site "https://www.chess.com"]

[Event "Titled Tuesday Blitz February 28 Late 2023"]
[White "Forgacs, Attila Jr."]
[Black "Diaz Perez, Michel Alejandro"]
[WhiteFideId "773654"]
[BlackFideId "3517179"]
[WhiteElo "2168"]
[BlackElo "2333"]
[Result "0-1"]
[Round "04"]
[TimeControl "180+2"]
[Date "2023.02.28"]
[WhiteClock "0:00:46"]
[BlackClock "0:01:34"]

1. e4 {[%clk 0:03:00]}  d5 {[%clk 0:02:53]} 2. exd5 {[%clk 0:03:01]}  Nf6 {[%clk 0:02:53]} 3. Nc3 {[%clk 0:03:01]}  Nxd5 {[%clk 0:02:53]} 4. Ne4 {[%clk 0:02:59]}  Bf5 {[%clk 0:02:47]} 5. Ng3 {[%clk 0:02:58]}  Bg6 {[%clk 0:02:47]} 6. d3 {[%clk 0:02:51]}  e6 {[%clk 0:02:46]} 7. Nf3 {[%clk 0:02:50]}  Bb4+ {[%clk 0:02:44]} 8. Bd2 {[%clk 0:02:46]}  Be7 {[%clk 0:02:45]} 9. Ne5 {[%clk 0:02:39]}  Nd7 {[%clk 0:02:42]} 10. Nxg6 {[%clk 0:02:40]}  hxg6 {[%clk 0:02:43]} 11. c4 {[%clk 0:02:34]}  N5f6 {[%clk 0:02:41]} 12. d4 {[%clk 0:02:30]}  c6 {[%clk 0:02:41]} 13. Bd3 {[%clk 0:02:29]}  Bd6 {[%clk 0:02:40]} 14. Bc3 {[%clk 0:02:29]}  Qc7 {[%clk 0:02:37]} 15. Qf3 {[%clk 0:02:27]}  c5 {[%clk 0:02:31]} 16. dxc5 {[%clk 0:02:24]}  Nxc5 {[%clk 0:02:30]} 17. Bc2 {[%clk 0:02:20]}  Be5 {[%clk 0:02:26]} 18. O-O-O {[%clk 0:02:11]}  Bxc3 {[%clk 0:02:23]} 19. Qxc3 {[%clk 0:02:10]}  Rc8 {[%clk 0:02:18]} 20. b4 {[%clk 0:02:05]}  Ncd7 {[%clk 0:02:11]} 21. c5 {[%clk 0:01:55]}  b6 {[%clk 0:02:10]} 22. Ba4 {[%clk 0:01:46]}  bxc5 {[%clk 0:02:02]} 23. Ne4 {[%clk 0:01:38]}  O-O {[%clk 0:01:54]} 24. Nxf6+ {[%clk 0:01:02]}  Nxf6 {[%clk 0:01:53]} 25. bxc5 {[%clk 0:00:56]}  Qf4+ {[%clk 0:01:50]} 26. Rd2 {[%clk 0:00:51]}  Qxa4 {[%clk 0:01:50]} 27. h4 {[%clk 0:00:51]}  Ne4 {[%clk 0:01:50]} 28. Qc2 {[%clk 0:00:50]}  Rxc5 {[%clk 0:01:45]} 29. Qxc5 {[%clk 0:00:45]}  Nxc5 {[%clk 0:01:46]} 30. h5 {[%clk 0:00:46]}  Rc8 {[%clk 0:01:39]} 31. hxg6 {[%clk 0:00:46]}  Nb3+ {[%clk 0:01:37]} 32. Kd1 {[%clk 0:00:46]}  Nxd2+ {[%clk 0:01:37]} 33. Kxd2 {[%clk 0:00:46]}  Qxa2+ {[%clk 0:01:36]} 34. Ke3 {[%clk 0:00:46]}  Rc3+ {[%clk 0:01:34]} 0-1


[Site "https://www.chess.com"]

[Event "Titled Tuesday Blitz February 28 Late 2023"]
[White "Hoffmann, Asa"]
[Black "Plenca, Jadranko"]
[WhiteFideId "2001470"]
[BlackFideId "14527146"]
[WhiteElo "2117"]
[BlackElo "2491"]
[Result "0-1"]
[Round "04"]
[TimeControl "180+2"]
[Date "2023.02.28"]
[WhiteClock "0:01:58"]
[BlackClock "0:02:21"]

1. d4 {[%clk 0:02:57]}  Nf6 {[%clk 0:02:59]} 2. Bg5 {[%clk 0:02:56]}  g6 {[%clk 0:02:51]} 3. Nc3 {[%clk 0:02:55]}  d5 {[%clk 0:02:51]} 4. f3 {[%clk 0:02:55]}  Bg7 {[%clk 0:02:48]} 5. e4 {[%clk 0:02:55]}  dxe4 {[%clk 0:02:48]} 6. fxe4 {[%clk 0:02:55]}  c5 {[%clk 0:02:49]} 7. d5 {[%clk 0:02:55]}  Qa5 {[%clk 0:02:49]} 8. Qd2 {[%clk 0:02:54]}  a6 {[%clk 0:02:42]} 9. Nf3 {[%clk 0:02:46]}  b5 {[%clk 0:02:41]} 10. e5 {[%clk 0:02:45]}  Nfd7 {[%clk 0:02:36]} 11. O-O-O {[%clk 0:02:06]}  b4 {[%clk 0:02:33]} 12. Nb1 {[%clk 0:02:05]}  Qxa2 {[%clk 0:02:22]} 13. e6 {[%clk 0:01:58]}  Qxb2# {[%clk 0:02:21]} 0-1


[Site "https://www.chess.com"]

[Event "Titled Tuesday Blitz February 28 Late 2023"]
[White "Pein, Jonathan"]
[Black "Sebag, Marie"]
[WhiteFideId "417092"]
[BlackFideId "617822"]
[WhiteElo "2151"]
[BlackElo "2440"]
[Result "0-1"]
[Round "04"]
[TimeControl "180+2"]
[Date "2023.02.28"]
[WhiteClock "0:01:00"]
[BlackClock "0:00:28"]

1. e4 {[%clk 0:03:00]}  c6 {[%clk 0:02:31]} 2. b3 {[%clk 0:02:58]}  d5 {[%clk 0:02:29]} 3. Bb2 {[%clk 0:02:59]}  dxe4 {[%clk 0:02:28]} 4. Nc3 {[%clk 0:02:59]}  Nf6 {[%clk 0:02:28]} 5. Nge2 {[%clk 0:03:00]}  Bf5 {[%clk 0:02:27]} 6. Ng3 {[%clk 0:03:00]}  Bg6 {[%clk 0:02:27]} 7. h4 {[%clk 0:03:00]}  h6 {[%clk 0:02:25]} 8. h5 {[%clk 0:03:00]}  Bh7 {[%clk 0:02:24]} 9. Qe2 {[%clk 0:03:01]}  e6 {[%clk 0:02:24]} 10. Ngxe4 {[%clk 0:02:58]}  Be7 {[%clk 0:02:24]} 11. O-O-O {[%clk 0:02:55]}  Nbd7 {[%clk 0:02:24]} 12. Kb1 {[%clk 0:02:55]}  Qc7 {[%clk 0:02:23]} 13. g3 {[%clk 0:02:53]}  O-O-O {[%clk 0:02:18]} 14. Bg2 {[%clk 0:02:54]}  Kb8 {[%clk 0:02:15]} 15. a4 {[%clk 0:02:44]}  Nd5 {[%clk 0:02:14]} 16. Rhe1 {[%clk 0:02:35]}  Rhe8 {[%clk 0:02:03]} 17. Qf1 {[%clk 0:02:22]}  Nb4 {[%clk 0:02:01]} 18. d3 {[%clk 0:02:20]}  Nd5 {[%clk 0:01:48]} 19. Nd2 {[%clk 0:02:19]}  Bb4 {[%clk 0:01:47]} 20. Na2 {[%clk 0:02:14]}  Bf8 {[%clk 0:01:44]} 21. Nc4 {[%clk 0:02:13]}  f6 {[%clk 0:01:38]} 22. Qh1 {[%clk 0:02:10]}  e5 {[%clk 0:01:37]} 23. a5 {[%clk 0:02:10]}  Nc5 {[%clk 0:01:33]} 24. d4 {[%clk 0:02:05]}  exd4 {[%clk 0:01:25]} 25. Rxe8 {[%clk 0:02:06]}  Rxe8 {[%clk 0:01:24]} 26. Bxd5 {[%clk 0:02:06]}  cxd5 {[%clk 0:01:22]} 27. Qxd5 {[%clk 0:02:07]}  Nxb3 {[%clk 0:01:14]} 28. a6 {[%clk 0:01:21]}  bxa6 {[%clk 0:00:56]} 29. Rd3 {[%clk 0:01:09]}  Re1+ {[%clk 0:00:41]} 30. Nc1 {[%clk 0:01:07]}  Bxd3 {[%clk 0:00:37]} 31. cxd3 {[%clk 0:01:08]}  Nxc1 {[%clk 0:00:36]} 32. Bxc1 {[%clk 0:01:08]}  Qb7+ {[%clk 0:00:33]} 33. Qxb7+ {[%clk 0:01:08]}  Kxb7 {[%clk 0:00:33]} 34. Kc2 {[%clk 0:01:09]}  Rf1 {[%clk 0:00:32]} 35. Na5+ {[%clk 0:01:08]}  Kb6 {[%clk 0:00:30]} 36. Nc4+ {[%clk 0:01:09]}  Kb5 {[%clk 0:00:29]} 37. f4 {[%clk 0:01:00]}  Rf2+ {[%clk 0:00:29]} 38. Kb3 {[%clk 0:01:00]}  Rf3 {[%clk 0:00:29]} 39. g4 {[%clk 0:01:00]}  Rxd3+ {[%clk 0:00:28]} 0-1


[Site "https://www.chess.com"]

[Event "Titled Tuesday Blitz February 28 Late 2023"]
[White "Kovalevsky, Stanislav"]
[Black "Di Berardino, Diego Rafael"]
[WhiteFideId "13508598"]
[BlackFideId "2105446"]
[WhiteElo "2220"]
[BlackElo "2432"]
[Result "1-0"]
[Round "04"]
[TimeControl "180+2"]
[Date "2023.02.28"]
[WhiteClock "0:00:20"]
[BlackClock "0:00:03"]

1. c4 {[%clk 0:03:00]}  e5 {[%clk 0:02:57]} 2. Nc3 {[%clk 0:02:59]}  Nf6 {[%clk 0:02:58]} 3. g3 {[%clk 0:03:00]}  d5 {[%clk 0:02:58]} 4. cxd5 {[%clk 0:03:00]}  Nxd5 {[%clk 0:02:58]} 5. Bg2 {[%clk 0:03:01]}  Nb6 {[%clk 0:02:59]} 6. e3 {[%clk 0:03:02]}  h5 {[%clk 0:02:48]} 7. d4 {[%clk 0:02:58]}  exd4 {[%clk 0:02:46]} 8. Qxd4 {[%clk 0:02:59]}  Qxd4 {[%clk 0:02:46]} 9. exd4 {[%clk 0:03:00]}  Nc6 {[%clk 0:02:40]} 10. Nf3 {[%clk 0:02:58]}  h4 {[%clk 0:02:39]} 11. gxh4 {[%clk 0:02:49]}  Bg4 {[%clk 0:02:33]} 12. Ne5 {[%clk 0:02:09]}  Nxe5 {[%clk 0:01:44]} 13. dxe5 {[%clk 0:02:09]}  O-O-O {[%clk 0:01:41]} 14. Bg5 {[%clk 0:02:09]}  Re8 {[%clk 0:01:39]} 15. O-O {[%clk 0:02:04]}  Rxe5 {[%clk 0:01:32]} 16. Rfe1 {[%clk 0:02:04]}  Rxe1+ {[%clk 0:01:15]} 17. Rxe1 {[%clk 0:02:05]}  Bd6 {[%clk 0:01:15]} 18. Nb5 {[%clk 0:02:02]}  f6 {[%clk 0:00:56]} 19. Nxd6+ {[%clk 0:02:02]}  cxd6 {[%clk 0:00:57]} 20. Bf4 {[%clk 0:02:02]}  Kd7 {[%clk 0:00:43]} 21. Bxb7 {[%clk 0:02:00]}  Rxh4 {[%clk 0:00:42]} 22. Bg3 {[%clk 0:01:59]}  Rh8 {[%clk 0:00:41]} 23. Ba6 {[%clk 0:01:57]}  Bf3 {[%clk 0:00:34]} 24. Bb5+ {[%clk 0:01:48]}  Bc6 {[%clk 0:00:33]} 25. Bxc6+ {[%clk 0:01:48]}  Kxc6 {[%clk 0:00:34]} 26. Re7 {[%clk 0:01:49]}  a5 {[%clk 0:00:30]} 27. Rxg7 {[%clk 0:01:48]}  a4 {[%clk 0:00:28]} 28. Rg4 {[%clk 0:01:40]}  d5 {[%clk 0:00:23]} 29. Rf4 {[%clk 0:01:36]}  Rf8 {[%clk 0:00:19]} 30. h4 {[%clk 0:01:35]}  Nc4 {[%clk 0:00:17]} 31. b3 {[%clk 0:01:34]}  axb3 {[%clk 0:00:18]} 32. axb3 {[%clk 0:01:35]}  Nd6 {[%clk 0:00:14]} 33. f3 {[%clk 0:01:22]}  f5 {[%clk 0:00:13]} 34. Ra4 {[%clk 0:01:20]}  Nb5 {[%clk 0:00:11]} 35. Be5 {[%clk 0:01:13]}  Re8 {[%clk 0:00:08]} 36. f4 {[%clk 0:01:10]}  Rg8+ {[%clk 0:00:08]} 37. Kf2 {[%clk 0:01:08]}  Rg4 {[%clk 0:00:09]} 38. Bf6 {[%clk 0:00:59]}  d4 {[%clk 0:00:09]} 39. Bg5 {[%clk 0:00:58]}  d3 {[%clk 0:00:08]} 40. Rc4+ {[%clk 0:00:46]}  Kd5 {[%clk 0:00:07]} 41. Rc8 {[%clk 0:00:36]}  d2 {[%clk 0:00:06]} 42. Rd8+ {[%clk 0:00:33]}  Nd6 {[%clk 0:00:06]} 43. Ke2 {[%clk 0:00:33]}  Rg2+ {[%clk 0:00:06]} 44. Kd1 {[%clk 0:00:34]}  Kc6 {[%clk 0:00:06]} 45. Rxd6+ {[%clk 0:00:29]}  Kxd6 {[%clk 0:00:06]} 46. h5 {[%clk 0:00:28]}  Rh2 {[%clk 0:00:06]} 47. h6 {[%clk 0:00:27]}  Kd5 {[%clk 0:00:07]} 48. h7 {[%clk 0:00:26]}  Rxh7 {[%clk 0:00:04]} 49. Kxd2 {[%clk 0:00:26]}  Rh3 {[%clk 0:00:03]} 50. Kc2 {[%clk 0:00:26]}  Ke4 {[%clk 0:00:03]} 51. b4 {[%clk 0:00:24]}  Kd5 {[%clk 0:00:02]} 52. Be7 {[%clk 0:00:20]}  Kc4 {[%clk 0:00:03]} 53. Bc5 {[%clk 0:00:19]}  Rh2+ {[%clk 0:00:03]} 54. Kd1 {[%clk 0:00:19]}  Rg2 {[%clk 0:00:04]} 55. Ke1 {[%clk 0:00:19]}  Rg4 {[%clk 0:00:04]} 56. Bd6 {[%clk 0:00:19]}  Rg2 {[%clk 0:00:03]} 57. Kf1 {[%clk 0:00:20]}  Rb2 {[%clk 0:00:03]} 58. Ke1 {[%clk 0:00:19]}  Kd3 {[%clk 0:00:03]} 59. Bc5 {[%clk 0:00:18]}  Ke4 {[%clk 0:00:03]} 60. Bd6 {[%clk 0:00:18]}  Kd5 {[%clk 0:00:04]} 61. Bc5 {[%clk 0:00:18]}  Rb3 {[%clk 0:00:02]} 62. Ke2 {[%clk 0:00:18]}  Ke4 {[%clk 0:00:02]} 63. Bd6 {[%clk 0:00:18]}  Rb2+ {[%clk 0:00:02]} 64. Ke1 {[%clk 0:00:18]}  Ke3 {[%clk 0:00:02]} 65. Kf1 {[%clk 0:00:18]}  Kf3 {[%clk 0:00:02]} 66. Ke1 {[%clk 0:00:18]}  Ke3 {[%clk 0:00:03]} 67. Kf1 {[%clk 0:00:18]}  Kd3 {[%clk 0:00:03]} 68. Bc5 {[%clk 0:00:18]}  Kc4 {[%clk 0:00:03]} 69. Ke1 {[%clk 0:00:18]}  Kb5 {[%clk 0:00:04]} 70. Kd1 {[%clk 0:00:19]}  Kc6 {[%clk 0:00:03]} 71. Kc1 {[%clk 0:00:19]}  Rf2 {[%clk 0:00:03]} 72. Bxf2 {[%clk 0:00:19]}  Kb5 {[%clk 0:00:03]} 73. Bc5 {[%clk 0:00:20]} 1-0


[Site "https://www.chess.com"]

[Event "Titled Tuesday Blitz February 28 Late 2023"]
[White "Bouget, Alexandre"]
[Black "Paszewski, Mateusz"]
[WhiteFideId "681318"]
[BlackFideId "1141058"]
[WhiteElo "2177"]
[BlackElo "2223"]
[Result "0-1"]
[Round "04"]
[TimeControl "180+2"]
[Date "2023.02.28"]
[WhiteClock "0:00:34"]
[BlackClock "0:00:40"]

1. d4 {[%clk 0:02:52]}  d5 {[%clk 0:02:58]} 2. c4 {[%clk 0:02:51]}  e6 {[%clk 0:02:58]} 3. Nc3 {[%clk 0:02:50]}  a6 {[%clk 0:02:57]} 4. cxd5 {[%clk 0:02:49]}  exd5 {[%clk 0:02:58]} 5. Qb3 {[%clk 0:02:49]}  c6 {[%clk 0:02:56]} 6. e4 {[%clk 0:02:49]}  dxe4 {[%clk 0:02:41]} 7. Bc4 {[%clk 0:02:49]}  Qe7 {[%clk 0:02:26]} 8. a4 {[%clk 0:02:50]}  Nf6 {[%clk 0:02:21]} 9. Nh3 {[%clk 0:02:48]}  h6 {[%clk 0:02:17]} 10. Nf4 {[%clk 0:02:46]}  g5 {[%clk 0:02:07]} 11. Nfe2 {[%clk 0:02:43]}  Bg7 {[%clk 0:02:07]} 12. h4 {[%clk 0:02:39]}  g4 {[%clk 0:01:59]} 13. Ng3 {[%clk 0:02:34]}  O-O {[%clk 0:01:59]} 14. O-O {[%clk 0:02:27]}  c5 {[%clk 0:01:40]} 15. d5 {[%clk 0:02:22]}  Nbd7 {[%clk 0:01:22]} 16. Re1 {[%clk 0:02:19]}  Ne5 {[%clk 0:01:17]} 17. Ncxe4 {[%clk 0:02:17]}  Nxe4 {[%clk 0:01:16]} 18. Rxe4 {[%clk 0:02:12]}  Qxh4 {[%clk 0:01:14]} 19. Bf1 {[%clk 0:01:56]}  f5 {[%clk 0:01:08]} 20. d6+ {[%clk 0:01:53]}  Kh8 {[%clk 0:01:07]} 21. Re1 {[%clk 0:01:46]}  f4 {[%clk 0:01:07]} 22. Ne2 {[%clk 0:01:35]}  Nf3+ {[%clk 0:00:41]} 23. gxf3 {[%clk 0:01:33]}  g3 {[%clk 0:00:42]} 24. fxg3 {[%clk 0:01:26]}  fxg3 {[%clk 0:00:41]} 25. Bg2 {[%clk 0:01:19]}  Qh2+ {[%clk 0:00:41]} 26. Kf1 {[%clk 0:01:17]}  Bh3 {[%clk 0:00:42]} 27. Nf4 {[%clk 0:00:37]}  Rxf4 {[%clk 0:00:40]} 28. Bxh3 {[%clk 0:00:34]}  Qf2# {[%clk 0:00:40]} 0-1


[Site "https://www.chess.com"]

[Event "Titled Tuesday Blitz February 28 Late 2023"]
[White "Guzman Moneo, Alberto"]
[Black "Postma, Dinant"]
[WhiteFideId "2209616"]
[BlackFideId "1018612"]
[WhiteElo "2157"]
[BlackElo "2567"]
[Result "1-0"]
[Round "04"]
[TimeControl "180+2"]
[Date "2023.02.28"]
[WhiteClock "0:00:43"]
[BlackClock "0:00:05"]

1. e4 {[%clk 0:02:57]}  c5 {[%clk 0:02:58]} 2. Nc3 {[%clk 0:02:57]}  e6 {[%clk 0:02:57]} 3. Nge2 {[%clk 0:02:56]}  Nc6 {[%clk 0:02:55]} 4. g3 {[%clk 0:02:55]}  d5 {[%clk 0:02:53]} 5. exd5 {[%clk 0:02:54]}  exd5 {[%clk 0:02:54]} 6. d4 {[%clk 0:02:54]}  Nf6 {[%clk 0:02:44]} 7. Bg2 {[%clk 0:02:49]}  cxd4 {[%clk 0:02:39]} 8. Nxd4 {[%clk 0:02:49]}  Bc5 {[%clk 0:02:39]} 9. Be3 {[%clk 0:02:45]}  O-O {[%clk 0:02:33]} 10. Nxc6 {[%clk 0:02:44]}  bxc6 {[%clk 0:02:30]} 11. Bxc5 {[%clk 0:02:43]}  Re8+ {[%clk 0:02:31]} 12. Ne2 {[%clk 0:02:29]}  Ba6 {[%clk 0:02:25]} 13. Bf3 {[%clk 0:02:27]}  Ne4 {[%clk 0:02:12]} 14. Be3 {[%clk 0:02:23]}  Qf6 {[%clk 0:01:20]} 15. Bxe4 {[%clk 0:02:13]}  Rxe4 {[%clk 0:01:16]} 16. O-O {[%clk 0:02:10]}  d4 {[%clk 0:01:03]} 17. Bxd4 {[%clk 0:01:58]}  Bxe2 {[%clk 0:01:00]} 18. Bxf6 {[%clk 0:01:58]}  Bxd1 {[%clk 0:01:00]} 19. Raxd1 {[%clk 0:01:47]}  gxf6 {[%clk 0:01:01]} 20. Rd6 {[%clk 0:01:42]}  Re6 {[%clk 0:01:01]} 21. Rfd1 {[%clk 0:01:42]}  Rb8 {[%clk 0:00:36]} 22. Rd8+ {[%clk 0:01:40]}  Rxd8 {[%clk 0:00:31]} 23. Rxd8+ {[%clk 0:01:41]}  Kg7 {[%clk 0:00:31]} 24. Kf1 {[%clk 0:01:39]}  Re5 {[%clk 0:00:26]} 25. Rc8 {[%clk 0:01:32]}  Rc5 {[%clk 0:00:26]} 26. c3 {[%clk 0:01:32]}  f5 {[%clk 0:00:21]} 27. Ke1 {[%clk 0:01:29]}  Kf6 {[%clk 0:00:21]} 28. Kd2 {[%clk 0:01:29]}  a5 {[%clk 0:00:18]} 29. a4 {[%clk 0:01:27]}  Ke7 {[%clk 0:00:16]} 30. b3 {[%clk 0:01:25]}  Rd5+ {[%clk 0:00:13]} 31. Kc2 {[%clk 0:01:25]}  Kd7 {[%clk 0:00:13]} 32. Rf8 {[%clk 0:01:21]}  Ke7 {[%clk 0:00:13]} 33. Ra8 {[%clk 0:01:21]}  Re5 {[%clk 0:00:12]} 34. Kd3 {[%clk 0:01:20]}  Rd5+ {[%clk 0:00:13]} 35. Kc4 {[%clk 0:01:21]}  Rd2 {[%clk 0:00:12]} 36. f4 {[%clk 0:01:18]}  Rxh2 {[%clk 0:00:12]} 37. Rxa5 {[%clk 0:01:18]}  Rh3 {[%clk 0:00:09]} 38. Rxf5 {[%clk 0:01:17]}  Rxg3 {[%clk 0:00:09]} 39. Kc5 {[%clk 0:01:16]}  Rxc3+ {[%clk 0:00:08]} 40. Kb4 {[%clk 0:01:17]}  Rh3 {[%clk 0:00:06]} 41. a5 {[%clk 0:01:16]}  Rh1 {[%clk 0:00:05]} 42. a6 {[%clk 0:01:16]}  Rd1 {[%clk 0:00:03]} 43. Rh5 {[%clk 0:01:08]}  Rd7 {[%clk 0:00:02]} 44. Rxh7 {[%clk 0:01:07]}  Kd6 {[%clk 0:00:02]} 45. Ka5 {[%clk 0:01:03]}  Kc7 {[%clk 0:00:02]} 46. Rh5 {[%clk 0:00:56]}  Rd1 {[%clk 0:00:02]} 47. Rf5 {[%clk 0:00:55]}  Ra1+ {[%clk 0:00:01]} 48. Kb4 {[%clk 0:00:55]}  Rxa6 {[%clk 0:00:02]} 49. Rxf7+ {[%clk 0:00:55]}  Kd6 {[%clk 0:00:03]} 50. Rf6+ {[%clk 0:00:55]}  Ke7 {[%clk 0:00:03]} 51. Rf5 {[%clk 0:00:53]}  Ke6 {[%clk 0:00:02]} 52. Re5+ {[%clk 0:00:52]}  Kd6 {[%clk 0:00:02]} 53. Rh5 {[%clk 0:00:51]}  Rb6+ {[%clk 0:00:02]} 54. Kc4 {[%clk 0:00:52]}  Rb8 {[%clk 0:00:01]} 55. b4 {[%clk 0:00:52]}  Ke6 {[%clk 0:00:01]} 56. Rh6+ {[%clk 0:00:51]}  Kd7 {[%clk 0:00:01]} 57. f5 {[%clk 0:00:51]}  Rf8 {[%clk 0:00:01]} 58. f6 {[%clk 0:00:51]}  Kd6 {[%clk 0:00:01]} 59. f7+ {[%clk 0:00:50]}  Kd7 {[%clk 0:00:01]} 60. Rh7 {[%clk 0:00:50]}  Ke7 {[%clk 0:00:01]} 61. Kc5 {[%clk 0:00:50]}  Kd7 {[%clk 0:00:02]} 62. Kb6 {[%clk 0:00:49]}  Kd6 {[%clk 0:00:02]} 63. Rh6+ {[%clk 0:00:49]}  Kd7 {[%clk 0:00:03]} 64. Rf6 {[%clk 0:00:47]}  Ke7 {[%clk 0:00:03]} 65. Rf1 {[%clk 0:00:45]}  Rb8+ {[%clk 0:00:03]} 66. Kxc6 {[%clk 0:00:44]}  Kf8 {[%clk 0:00:04]} 67. b5 {[%clk 0:00:43]}  Rc8+ {[%clk 0:00:05]} 68. Kb6 {[%clk 0:00:43]} 1-0


[Site "https://www.chess.com"]